bitfinex/quotes_BTCUSD_20250607
["timestamp","ask_amount","ask_price","bid_price","bid_amount"]
[1749314278964,0.01894701,105550.0,105540.0,1.3535273]
[1749314281321,0.01894692,105550.0,105540.0,1.3535273]
[1749314282295,0.01894692,105550.0,105540.0,0.56660242]
[1749314282538,0.06072065,105550.0,105540.0,1.3534873]
[1749314282890,0.06072065,105550.0,105540.0,0.94940242]
[1749314283785,0.05124692,105550.0,105540.0,0.94940242]
[1749314284334,0.05124692,105550.0,105540.0,1.3534873]
[1749314284721,0.06072065,105550.0,105540.0,1.3534873]
[1749314284925,0.07019447,105550.0,105540.0,1.3534873]
[1749314285269,0.06072065,105550.0,105540.0,0.94940242]
[1749314285698,0.05124692,105550.0,105540.0,1.3534873]
[1749314285944,0.05124692,105550.0,105540.0,0.94940242]
[1749314286179,0.05124692,105550.0,105540.0,1.3534873]
[1749314288276,0.05124692,105550.0,105540.0,0.94940242]
[1749314288499,0.05124692,105550.0,105540.0,1.3534873]
[1749314288700,0.04177337,105550.0,105540.0,1.3534873]
[1749314288902,0.03524692,105550.0,105540.0,1.3534873]
[1749314289747,0.05034692,105550.0,105540.0,1.3534873]
[1749314290589,0.05034683,105550.0,105540.0,1.3534873]
[1749314291404,0.04087337,105550.0,105540.0,1.3534873]
[1749314298057,0.0314,105550.0,105540.0,1.3534873]
[1749314298275,0.04087346,105550.0,105540.0,1.3534873]
[1749314298492,0.0314,105550.0,105540.0,1.3534873]
[1749314300271,0.04087346,105550.0,105540.0,0.94940242]
[1749314300603,0.0314,105550.0,105540.0,0.94940242]
[1749314300805,0.04087346,105550.0,105540.0,0.94940242]
[1749314301634,0.0314,105550.0,105540.0,0.94940242]
[1749314301839,0.04087337,105550.0,105540.0,1.3534873]
[1749314303330,0.04087337,105550.0,105540.0,0.94940242]
[1749314304770,0.05034692,105550.0,105540.0,0.94940242]
[1749314305015,0.05034683,105550.0,105540.0,0.94940242]
[1749314305446,0.04087337,105550.0,105540.0,0.94940242]
[1749314309323,0.05034683,105550.0,105540.0,0.94940242]
[1749314311362,0.04087346,105550.0,105540.0,0.94940242]
[1749314313076,0.04087337,105550.0,105540.0,0.94940242]
[1749314313898,0.03969057,105550.0,105540.0,0.94940242]
[1749314315209,0.03969066,105550.0,105540.0,0.94940242]
[1749314317908,0.0491643,105550.0,105540.0,0.94940242]
[1749314318127,0.25759559,105550.0,105540.0,0.94940323]
[1749314318341,0.05863794,105550.0,105540.0,0.95887768]
[1749314318786,0.04916421,105550.0,105540.0,0.95887768]
[1749314319033,0.03969066,105550.0,105540.0,0.95887768]
[1749314319804,0.03969075,105550.0,105540.0,0.95887768]
[1749314320348,0.03969075,105550.0,105540.0,0.95828907]
[1749314320773,0.0302172,105550.0,105540.0,0.95828907]
[1749314320975,0.0302172,105550.0,105540.0,1.36237395]
[1749314324797,0.03969066,105550.0,105540.0,1.36237395]
[1749314325009,0.03969075,105550.0,105540.0,1.36237395]
[1749314325225,0.03969066,105550.0,105540.0,1.36237395]
[1749314325444,0.0302172,105550.0,105540.0,1.36237395]
[1749314326124,0.04916412,105550.0,105540.0,1.36237395]
[1749314326337,0.03969057,105550.0,105540.0,1.36237395]
[1749314327221,0.0302172,105550.0,105540.0,1.36237395]
[1749314327444,0.03969066,105550.0,105540.0,1.36237395]
[1749314327868,0.0302172,105550.0,105540.0,1.36237395]
[1749314328077,0.0302172,105550.0,105540.0,0.95828907]
[1749314328280,0.03969066,105550.0,105540.0,0.95828907]
[1749314328698,0.03969066,105550.0,105540.0,1.36237395]
[1749314329385,0.0302172,105550.0,105540.0,1.36237395]
[1749314329734,0.03969066,105550.0,105540.0,1.36237395]
[1749314331798,0.04916421,105550.0,105540.0,1.36237395]
[1749314332003,0.03969066,105550.0,105540.0,1.36237395]
[1749314333315,0.0302172,105550.0,105540.0,1.36237395]
[1749314333540,0.03969066,105550.0,105540.0,1.36237395]
[1749314335543,0.03969066,105550.0,105540.0,0.95828907]
[1749314335954,0.03969057,105550.0,105540.0,0.95828907]
[1749314336725,0.04916412,105550.0,105540.0,0.95828907]
[1749314340240,0.05863785,105550.0,105540.0,0.95828907]
[1749314340469,0.04916412,105550.0,105540.0,0.95828907]
[1749314341084,0.05863776,105550.0,105540.0,0.95828907]
[1749314341285,0.04916412,105550.0,105540.0,0.95828907]
[1749314343950,0.04916403,105550.0,105540.0,0.95828907]
[1749314344786,0.04916403,105550.0,105540.0,1.36237395]
[1749314345414,0.03969057,105550.0,105540.0,1.36237395]
[1749314346246,0.04916412,105550.0,105540.0,1.36237395]
[1749314346454,0.04916403,105550.0,105540.0,1.36237395]
[1749314347075,0.0302172,105550.0,105540.0,1.36237395]
[1749314347284,0.03969057,105550.0,105540.0,1.36237395]
[1749314347921,0.03969066,105550.0,105540.0,1.36237395]
[1749314348354,0.03969066,105550.0,105540.0,0.95828907]
[1749314348584,0.03969066,105550.0,105540.0,1.36237395]
[1749314349053,0.0302172,105550.0,105540.0,1.36237395]
[1749314349300,0.03969057,105550.0,105540.0,1.36237395]
[1749314350736,0.0302172,105550.0,105540.0,1.36237395]
[1749314350985,0.03969066,105550.0,105540.0,1.36237395]
[1749314351445,0.0302172,105550.0,105540.0,1.36237395]
[1749314351667,0.0302172,105550.0,105540.0,0.95828907]
[1749314351897,0.03969057,105550.0,105540.0,1.36237395]
[1749314352570,0.0302172,105550.0,105540.0,1.36237395]
[1749314352813,0.03969066,105550.0,105540.0,1.36237395]
[1749314354185,0.03969066,105550.0,105540.0,0.95828907]
[1749314354414,0.03969066,105550.0,105540.0,1.36237395]
[1749314355089,0.0302172,105550.0,105540.0,1.36237395]
[1749314355311,0.03969066,105550.0,105540.0,1.36237395]
[1749314356240,0.03969066,105550.0,105540.0,0.95828907]
[1749314356472,0.04916439,105550.0,105540.0,0.95828907]
[1749314358994,0.05863821,105550.0,105540.0,0.95828907]
[1749314360349,0.03969066,105550.0,105540.0,0.95828907]
[1749314360557,0.0491643,105550.0,105540.0,0.95828907]
[1749314360764,0.05863812,105550.0,105540.0,0.95828907]
[1749314363008,0.2575964,105550.0,105540.0,0.84294042]
[1749314363232,0.2575964,105550.0,105540.0,0.85241505]
[1749314363454,0.2575964,105550.0,105540.0,0.86188959]
[1749314363678,0.06811275,105550.0,105540.0,0.86188959]
[1749314363897,0.06811275,105550.0,105540.0,0.87136404]
[1749314364337,0.06811266,105550.0,105540.0,0.87136404]
[1749314365388,0.06811257,105550.0,105540.0,0.87136404]
[1749314369324,0.05863857,105550.0,105540.0,0.87056404]
[1749314369619,0.06811257,105550.0,105540.0,0.87056404]
[1749314370677,0.25759667,105550.0,105540.0,0.85161505]
[1749314371572,0.24812285,105550.0,105540.0,0.46014042]
[1749314371784,0.23868894,105550.0,105540.0,0.84214042]
[1749314372936,0.24693816,105550.0,105540.0,0.84225159]
[1749314373391,0.24693816,105550.0,105540.0,0.8517264]
[1749314373600,0.22921494,105550.0,105540.0,0.8517264]
[1749314374848,0.22921494,105550.0,105540.0,0.86120112]
[1749314376681,0.22921494,105550.0,105540.0,0.87067575]
[1749314377622,0.22921494,105550.0,105540.0,0.87067512]
[1749314377623,0.04920511,105550.0,105540.0,0.87067512]
[1749314380278,0.04672511,105550.0,105540.0,0.87067512]
[1749314386923,0.04672511,105550.0,105540.0,0.62487512]
[1749314387988,0.05619857,105550.0,105540.0,0.62487512]
[1749314389353,0.04672457,105550.0,105540.0,0.62487512]
[1749314389580,0.05619857,105550.0,105540.0,0.62487512]
[1749314390026,0.0277772,105550.0,105540.0,1.02896]
[1749314390244,0.03725057,105550.0,105540.0,1.02896]
[1749314390469,0.03725057,105550.0,105540.0,1.12535948]
[1749314390470,0.0277772,105550.0,105540.0,1.12535948]
[1749314390685,0.01514,105550.0,105540.0,1.12535948]
[1749314391561,4e-05,105550.0,105540.0,1.52944436]
[1749314391992,4e-05,105550.0,105540.0,1.53384436]
[1749314393356,4e-05,105550.0,105540.0,1.52944436]
[1749314393566,4e-05,105550.0,105540.0,1.12535948]
[1749314396347,8e-05,105550.0,105540.0,1.12535948]
[1749314397188,0.00012,105550.0,105540.0,1.12535948]
[1749314398020,0.01676,105550.0,105540.0,1.12535948]
[1749314399054,0.03236,105550.0,105540.0,1.12535948]
[1749314402761,0.03236,105550.0,105540.0,0.7212746]
[1749314402963,0.03236,105550.0,105540.0,1.12535948]
[1749314404456,0.04183337,105550.0,105540.0,1.12535948]
[1749314405004,0.06078074,105550.0,105540.0,1.12535948]
[1749314405212,0.06078074,105550.0,105540.0,0.83339948]
[1749314405428,0.07025474,105550.0,105540.0,1.12519948]
[1749314405847,0.07025474,105550.0,105540.0,1.11572503]
[1749314406062,0.07025474,105550.0,105540.0,1.12519948]
[1749314406282,0.06078074,105550.0,105540.0,1.12519948]
[1749314406489,0.07025465,105550.0,105540.0,1.12519948]
[1749314407141,0.07972865,105550.0,105540.0,1.37099948]
[1749314407780,0.07025465,105550.0,105540.0,1.37099948]
[1749314409786,0.06078074,105550.0,105540.0,1.37099948]
[1749314409989,0.07025465,105550.0,105540.0,1.37099948]
[1749314410192,0.06078074,105550.0,105540.0,1.37099948]
[1749314410402,0.07025465,105550.0,105540.0,1.37099948]
[1749314410643,0.06078074,105550.0,105540.0,1.37099948]
[1749314411244,0.05130692,105550.0,105540.0,1.37099948]
[1749314411486,0.07025438,105550.0,105540.0,1.37099948]
[1749314412193,0.06078056,105550.0,105540.0,1.37099948]
[1749314412335,0.07025438,105550.0,105540.0,1.37099948]
[1749314412548,0.06078056,105550.0,105540.0,1.37099948]
[1749314412746,0.07025429,105550.0,105540.0,1.37099948]
[1749314413154,0.06078056,105550.0,105540.0,1.37099948]
[1749314415865,0.07025429,105550.0,105540.0,1.37099948]
[1749314416079,0.04183337,105550.0,105540.0,1.37099948]
[1749314416292,0.05130692,105550.0,105540.0,1.37099948]
[1749314418209,0.04183337,105550.0,105540.0,1.37099948]
[1749314418420,0.05130692,105550.0,105540.0,1.37099948]
[1749314418636,0.04183355,105550.0,105540.0,1.37099948]
[1749314418876,0.04183346,105550.0,105540.0,1.37099948]
[1749314419534,0.03236,105550.0,105540.0,1.37099948]
[1749314419950,0.04183337,105550.0,105540.0,1.37099948]
[1749314422863,0.05130683,105550.0,105540.0,1.37099948]
[1749314423103,0.05130683,105550.0,105540.0,0.9669146]
[1749314423532,0.05130683,105550.0,105540.0,1.37099948]
[1749314424527,0.03236,105550.0,105540.0,1.37099948]
[1749314426413,0.04183337,105550.0,105540.0,1.37099948]
[1749314426652,0.03236,105550.0,105540.0,1.37099948]
[1749314429419,0.04183337,105550.0,105540.0,1.37099948]
[1749314432432,0.03236,105550.0,105540.0,1.37099948]
[1749314447290,0.03236,105550.0,105540.0,1.37015948]
[1749314456439,0.04183346,105550.0,105540.0,1.37015948]
[1749314456646,0.03236,105550.0,105540.0,1.37015948]
[1749314457059,0.04183337,105550.0,105540.0,1.37015948]
[1749314459196,0.04183337,105550.0,105540.0,1.36991948]
[1749314459847,0.03236,105550.0,105540.0,1.36991948]
[1749314460677,0.04183337,105550.0,105540.0,1.31991948]
[1749314460886,0.03236,105550.0,105540.0,1.31991948]
[1749314461131,0.04183346,105550.0,105540.0,1.31991948]
[1749314461348,0.03236,105550.0,105540.0,1.31991948]
[1749314462988,0.04183337,105550.0,105540.0,1.31991948]
[1749314463622,0.03236,105550.0,105540.0,1.31991948]
[1749314474333,0.04183337,105550.0,105540.0,1.31991948]
[1749314474969,0.03236,105550.0,105540.0,1.31991948]
[1749314476304,0.04183346,105550.0,105540.0,1.31991948]
[1749314476515,0.03236,105550.0,105540.0,1.31991948]
[1749314476926,0.25026484,105550.0,105540.0,0.5506508]
[1749314477118,0.24079138,105550.0,105540.0,0.82605651]
[1749314477531,0.26799771,105550.0,105540.0,0.84500586]
[1749314477735,0.25026556,105550.0,105540.0,0.83553123]
[1749314478141,0.26799392,105550.0,105540.0,0.83553123]
[1749314478344,0.25026556,105550.0,105540.0,0.83553123]
[1749314478551,0.26799392,105550.0,105540.0,0.84500586]
[1749314478725,0.26799394,105550.0,105540.0,0.84500586]
[1749314478965,0.25026556,105550.0,105540.0,0.84500586]
[1749314479746,0.25026556,105550.0,105540.0,0.83553123]
[1749314479954,0.25026556,105550.0,105540.0,0.84500586]
[1749314480787,0.25026556,105550.0,105540.0,0.55352586]
[1749314480994,0.25026556,105550.0,105540.0,0.84500586]
[1749314481195,0.24079183,105550.0,105540.0,0.3356]
[1749314481400,0.23131783,105550.0,105540.0,0.62708]
[1749314481628,0.58903083,105550.0,105540.0,0.2458]
[1749314481761,0.58903052,105550.0,105540.0,0.62708]
[1749314481962,0.58903046,105550.0,105540.0,0.62708]
[1749314482908,0.57131783,105550.0,105540.0,0.62708]
[1749314483111,0.58900803,105550.0,105540.0,0.62708]
[1749314484380,0.59856059,105550.0,105540.0,0.62708]
[1749314484582,0.59855571,105550.0,105540.0,0.62708]
[1749314485148,0.5985557,105550.0,105540.0,0.62708]
[1749314485570,0.58087039,105550.0,105540.0,0.62708]
[1749314485779,0.59855574,105550.0,105540.0,0.62708]
[1749314486708,0.59855456,105550.0,105540.0,0.62708]
[1749314486907,0.58087039,105550.0,105540.0,0.62708]
[1749314487099,0.59855456,105550.0,105540.0,0.62708]
[1749314487261,0.58087039,105550.0,105540.0,0.62708]
[1749314487465,0.59855456,105550.0,105540.0,0.62708]
[1749314488044,0.59855476,105550.0,105540.0,0.62708]
[1749314488564,0.59855477,105550.0,105540.0,0.62708]
[1749314489812,0.59855551,105550.0,105540.0,0.62708]
[1749314490384,0.59855552,105550.0,105540.0,0.62708]
[1749314491189,0.59855759,105550.0,105540.0,0.62708]
[1749314491719,0.5985576,105550.0,105540.0,0.62708]
[1749314492364,0.59855758,105550.0,105540.0,0.62708]
[1749314494429,0.58087039,105550.0,105540.0,0.62708]
[1749314494665,0.59856087,105550.0,105540.0,0.62708]
[1749314494878,0.58087039,105550.0,105540.0,0.62708]
[1749314495094,0.59856087,105550.0,105540.0,0.62708]
[1749314495294,0.59856087,105550.0,105540.0,0.62908]
[1749314496002,0.58087039,105550.0,105540.0,0.62908]
[1749314496227,0.59856172,105550.0,105540.0,0.62908]
[1749314496437,0.58087039,105550.0,105540.0,0.62908]
[1749314496830,0.59856169,105550.0,105540.0,0.62908]
[1749314497032,0.59856169,105550.0,105540.0,0.38328]
[1749314497802,0.58087039,105550.0,105540.0,0.38328]
[1749314498223,0.59856325,105550.0,105540.0,0.38328]
[1749314499960,0.58087039,105550.0,105540.0,0.38328]
[1749314500411,0.59856443,105550.0,105540.0,0.38328]
[1749314501194,0.59856561,105550.0,105540.0,0.38328]
[1749314501486,0.5985656,105550.0,105540.0,0.38328]
[1749314501772,0.58087039,105550.0,105540.0,0.38328]
[1749314502423,0.59857172,105550.0,105540.0,0.38328]
[1749314503515,0.58087039,105550.0,105540.0,0.38328]
[1749314503959,0.59857236,105550.0,105540.0,0.38328]
[1749314505384,0.59857264,105550.0,105540.0,0.38328]
[1749314505555,0.59857262,105550.0,105540.0,0.38328]
[1749314505909,0.59857275,105550.0,105540.0,0.38328]
[1749314506110,0.59857277,105550.0,105540.0,0.38328]
[1749314506928,0.60521528,105550.0,105540.0,0.38328]
[1749314507128,0.58087039,105550.0,105540.0,0.38328]
[1749314507973,0.60522624,105550.0,105540.0,0.38328]
[1749314508187,0.60522617,105550.0,105540.0,0.38328]
[1749314508761,0.58751646,105550.0,105540.0,0.38328]
[1749314508996,0.60523931,105550.0,105540.0,0.38328]
[1749314509363,0.60523933,105550.0,105540.0,0.38328]
[1749314509567,0.58087039,105550.0,105540.0,0.38328]
[1749314509735,0.60523931,105550.0,105540.0,0.38328]
[1749314510119,0.6052391,105550.0,105540.0,0.38328]
[1749314511193,0.59859324,105550.0,105540.0,0.38328]
[1749314511401,0.60523859,105550.0,105540.0,0.38328]
[1749314511787,0.59859273,105550.0,105540.0,0.38328]
[1749314511947,0.58751625,105550.0,105540.0,0.38328]
[1749314512144,0.60523845,105550.0,105540.0,0.38328]
[1749314512415,0.60523844,105550.0,105540.0,0.38328]
[1749314512614,0.58087039,105550.0,105540.0,0.38328]
[1749314512816,0.60523844,105550.0,105540.0,0.38328]
[1749314513230,0.60523825,105550.0,105540.0,0.38328]
[1749314513371,0.60523823,105550.0,105540.0,0.38328]
[1749314513570,0.59859246,105550.0,105540.0,0.38328]
[1749314513774,0.60523824,105550.0,105540.0,0.38328]
[1749314513976,0.59859233,105550.0,105540.0,0.38164]
[1749314514177,0.60523804,105550.0,105540.0,0.38164]
[1749314514380,0.60523805,105550.0,105540.0,0.38164]
[1749314515073,0.58751611,105550.0,105540.0,0.38164]
[1749314515277,0.60523804,105550.0,105540.0,0.38164]
[1749314515482,0.60523805,105550.0,105540.0,0.38164]
[1749314515888,0.60523799,105550.0,105540.0,0.38164]
[1749314516094,0.60523786,105550.0,105540.0,0.38164]
[1749314516648,0.58087039,105550.0,105540.0,0.38164]
[1749314516878,0.60523788,105550.0,105540.0,0.38164]
[1749314517134,0.58087039,105550.0,105540.0,0.38164]
[1749314517280,0.58751606,105550.0,105540.0,0.38164]
[1749314517491,0.60523786,105550.0,105540.0,0.38164]
[1749314517695,0.59859219,105550.0,105540.0,0.38164]
[1749314517896,0.60523784,105550.0,105540.0,0.38164]
[1749314518483,0.60523778,105550.0,105540.0,0.38164]
[1749314519114,0.6052378,105550.0,105540.0,0.38164]
[1749314519323,0.58751606,105550.0,105540.0,0.002]
[1749314519507,0.59859219,105550.0,105540.0,0.38304]
[1749314519738,0.60523811,105550.0,105540.0,0.38304]
[1749314520673,0.5985924,105550.0,105540.0,0.38304]
[1749314520858,0.6052382,105550.0,105540.0,0.38304]
[1749314521084,0.58751619,105550.0,105540.0,0.38304]
[1749314521364,0.58751544,105550.0,105540.0,0.38304]
[1749314521582,0.60523557,105550.0,105540.0,0.38304]
[1749314521992,0.60523563,105550.0,105540.0,0.38304]
[1749314522196,0.59859052,105550.0,105540.0,0.38304]
[1749314522403,0.60523558,105550.0,105540.0,0.38304]
[1749314522567,0.60523555,105550.0,105540.0,0.38304]
[1749314522766,0.60523511,105550.0,105540.0,0.38304]
[1749314522974,0.605235,105550.0,105540.0,0.38304]
[1749314523174,0.58087039,105550.0,105540.0,0.38304]
[1749314523543,0.60523616,105550.0,105540.0,0.38304]
[1749314523782,0.60523615,105550.0,105540.0,0.38304]
[1749314524377,0.60523613,105550.0,105540.0,0.38304]
[1749314524638,0.59859094,105550.0,105540.0,0.38304]
[1749314524803,0.58751559,105550.0,105540.0,0.38304]
[1749314525003,0.6052361,105550.0,105540.0,0.38304]
[1749314525267,0.58751558,105550.0,105540.0,0.38304]
[1749314525459,0.60523604,105550.0,105540.0,0.38304]
[1749314526292,0.59859096,105550.0,105540.0,0.38304]
[1749314526533,0.60523616,105550.0,105540.0,0.38304]
[1749314527011,0.59859095,105550.0,105540.0,0.38304]
[1749314527231,0.60523616,105550.0,105540.0,0.38304]
[1749314527778,0.60523693,105550.0,105540.0,0.38304]
[1749314527990,0.59859149,105550.0,105540.0,0.38304]
[1749314528202,0.6052369,105550.0,105540.0,0.38304]
[1749314529462,0.60523807,105550.0,105540.0,0.38304]
[1749314530105,0.60523812,105550.0,105540.0,0.002]
[1749314530313,0.60523825,105550.0,105540.0,0.38292]
[1749314531039,0.60523932,105550.0,105540.0,0.38292]
[1749314531478,0.60523971,105550.0,105540.0,0.38292]
[1749314531696,0.60523968,105550.0,105540.0,0.38292]
[1749314531921,0.58751656,105550.0,105540.0,0.38292]
[1749314532208,0.60523969,105550.0,105540.0,0.38292]
[1749314533126,0.60524055,105550.0,105540.0,0.38292]
[1749314533356,0.60524285,105550.0,105540.0,0.38292]
[1749314533567,0.59859582,105550.0,105540.0,0.38292]
[1749314533788,0.60524284,105550.0,105540.0,0.38292]
[1749314534662,0.60524283,105550.0,105540.0,0.38292]
[1749314534884,0.58751742,105550.0,105540.0,0.38292]
[1749314535097,0.60524286,105550.0,105540.0,0.38292]
[1749314535319,0.60524285,105550.0,105540.0,0.38292]
[1749314535537,0.58751743,105550.0,105540.0,0.38292]
[1749314535766,0.58087039,105550.0,105540.0,0.38292]
[1749314535998,0.60524288,105550.0,105540.0,0.38292]
[1749314536902,0.58751724,105550.0,105540.0,0.38292]
[1749314537164,0.58087039,105550.0,105540.0,0.38292]
[1749314537411,0.60524232,105550.0,105540.0,0.38292]
[1749314538134,0.60524275,105550.0,105540.0,0.38292]
[1749314538366,0.58751771,105550.0,105540.0,0.38292]
[1749314538999,0.5875177,105550.0,105540.0,0.38292]
[1749314539205,0.58751765,105550.0,105540.0,0.38292]
[1749314539411,0.6052437,105550.0,105540.0,0.38292]
[1749314540005,0.60524333,105550.0,105540.0,0.38292]
[1749314540207,0.58751728,105550.0,105540.0,0.38292]
[1749314540427,0.58751715,105550.0,105540.0,0.38292]
[1749314540639,0.58087039,105550.0,105540.0,0.38292]
[1749314540819,0.60524206,105550.0,105540.0,0.38292]
[1749314541262,0.60524225,105550.0,105540.0,0.38292]
[1749314541470,0.60524276,105550.0,105540.0,0.38292]
[1749314541859,0.60524246,105550.0,105540.0,0.38292]
[1749314542031,0.60524264,105550.0,105540.0,0.38292]
[1749314542236,0.59859584,105550.0,105540.0,0.38292]
[1749314542437,0.69499532,105550.0,105540.0,0.09164]
[1749314542638,0.70164212,105550.0,105540.0,0.38284]
[1749314542842,0.7016419,105550.0,105540.0,0.38284]
[1749314543051,0.70164201,105550.0,105540.0,0.38284]
[1749314543684,0.70163869,105550.0,105540.0,0.38284]
[1749314543859,0.69499179,105550.0,105540.0,0.38284]
[1749314544186,0.70163751,105550.0,105540.0,0.38284]
[1749314544395,0.7016375,105550.0,105540.0,0.38284]
[1749314544598,0.68391559,105550.0,105540.0,0.38284]
[1749314544813,0.70163749,105550.0,105540.0,0.38284]
[1749314545560,0.69499178,105550.0,105540.0,0.38284]
[1749314545766,0.68391558,105550.0,105540.0,0.38284]
[1749314545971,0.67726987,105550.0,105540.0,0.38284]
[1749314546194,0.68391558,105550.0,105540.0,0.38284]
[1749314546367,0.70163722,105550.0,105540.0,0.38284]
[1749314546920,0.70163367,105550.0,105540.0,0.38284]
[1749314547129,0.67726987,105550.0,105540.0,0.38284]
[1749314547322,0.7016289,105550.0,105540.0,0.38284]
[1749314547548,0.69498554,105550.0,105540.0,0.38284]
[1749314547756,0.68391318,105550.0,105540.0,0.38284]
[1749314547953,0.68391329,105550.0,105540.0,0.38284]
[1749314548232,0.70162885,105550.0,105540.0,0.38284]
[1749314549190,0.7016285,105550.0,105540.0,0.38284]
[1749314549667,0.7016278,105550.0,105540.0,0.38284]
[1749314549839,0.67726987,105550.0,105540.0,0.38284]
[1749314550040,0.70162798,105550.0,105540.0,0.38284]
[1749314550467,0.70162783,105550.0,105540.0,0.38284]
[1749314550689,0.70162744,105550.0,105540.0,0.38284]
[1749314551556,0.68391284,105550.0,105540.0,0.38284]
[1749314551766,0.69498447,105550.0,105540.0,0.38284]
[1749314551979,0.70162744,105550.0,105540.0,0.38284]
[1749314552722,0.67726987,105550.0,105540.0,0.38284]
[1749314552916,0.70162751,105550.0,105540.0,0.38284]
[1749314553574,0.69498452,105550.0,105540.0,0.38284]
[1749314553745,0.70162751,105550.0,105540.0,0.38284]
[1749314554357,0.70162708,105550.0,105540.0,0.38284]
[1749314554723,0.67726987,105550.0,105540.0,0.38284]
[1749314554935,0.69498358,105550.0,105540.0,0.38284]
[1749314555194,0.70162619,105550.0,105540.0,0.38284]
[1749314556343,0.70162642,105550.0,105540.0,0.38284]
[1749314556805,0.70162736,105550.0,105540.0,0.38284]
[1749314557023,0.67726987,105550.0,105540.0,0.38284]
[1749314557245,0.70162814,105550.0,105540.0,0.38284]
[1749314557686,0.70162831,105550.0,105540.0,0.38284]
[1749314557907,0.70162845,105550.0,105540.0,0.38284]
[1749314558123,0.69498529,105550.0,105540.0,0.38284]
[1749314558344,0.70162857,105550.0,105540.0,0.38284]
[1749314558568,0.67726987,105550.0,105540.0,0.38284]
[1749314558804,0.68391315,105550.0,105540.0,0.38284]
[1749314559026,0.70162857,105550.0,105540.0,0.38284]
[1749314559539,0.69498529,105550.0,105540.0,0.38284]
[1749314559759,0.70162857,105550.0,105540.0,0.38284]
[1749314560207,0.68391321,105550.0,105540.0,0.38284]
[1749314560423,0.70162879,105550.0,105540.0,0.38284]
[1749314561265,0.70162892,105550.0,105540.0,0.38284]
[1749314561474,0.70162928,105550.0,105540.0,0.38284]
[1749314561686,0.68391334,105550.0,105540.0,0.38284]
[1749314561898,0.69498574,105550.0,105540.0,0.38284]
[1749314562105,0.70162912,105550.0,105540.0,0.38284]
[1749314562355,0.70162906,105550.0,105540.0,0.38284]
[1749314563067,0.70162925,105550.0,105540.0,0.38284]
[1749314563475,0.67726987,105550.0,105540.0,0.38284]
[1749314563943,0.68391335,105550.0,105540.0,0.38284]
[1749314564159,0.70162931,105550.0,105540.0,0.38284]
[1749314565113,0.70163047,105550.0,105540.0,0.38284]
[1749314565330,0.68391368,105550.0,105540.0,0.38284]
[1749314565544,0.67726987,105550.0,105540.0,0.38284]
[1749314565762,0.70163052,105550.0,105540.0,0.38284]
[1749314566060,0.68391368,105550.0,105540.0,0.38284]
[1749314566286,0.70163055,105550.0,105540.0,0.38284]
[1749314566940,0.68391368,105550.0,105540.0,0.38284]
[1749314567153,0.69498671,105550.0,105540.0,0.38284]
[1749314567373,0.69498667,105550.0,105540.0,0.38284]
[1749314567598,0.70163047,105550.0,105540.0,0.38284]
[1749314568130,0.70163135,105550.0,105540.0,0.38284]
[1749314568337,0.70163158,105550.0,105540.0,0.38284]
[1749314568556,0.70163175,105550.0,105540.0,0.38284]
[1749314568804,0.70163198,105550.0,105540.0,0.38284]
[1749314569919,0.7016326,105550.0,105540.0,0.38284]
[1749314570411,0.67726987,105550.0,105540.0,0.38284]
[1749314570639,0.6839147,105550.0,105540.0,0.38284]
[1749314570837,0.70163427,105550.0,105540.0,0.38284]
[1749314571057,0.69498943,105550.0,105540.0,0.38284]
[1749314571259,0.70163422,105550.0,105540.0,0.38284]
[1749314571472,0.7016342,105550.0,105540.0,0.38284]
[1749314571996,0.70163404,105550.0,105540.0,0.38284]
[1749314572161,0.69498927,105550.0,105540.0,0.38284]
[1749314572499,0.67726987,105550.0,105540.0,0.38284]
[1749314572729,0.69498927,105550.0,105540.0,0.38284]
[1749314572936,0.70163404,105550.0,105540.0,0.38284]
[1749314573654,0.70163402,105550.0,105540.0,0.38284]
[1749314573861,0.70163395,105550.0,105540.0,0.38284]
[1749314574512,0.72431477,105550.0,105540.0,0.38284]
[1749314574922,0.72431477,105550.0,105540.0,0.002]
[1749314575129,0.72431477,105550.0,105540.0,0.38256]
[1749314575340,0.70163397,105550.0,105540.0,0.38256]
[1749314575630,0.70163404,105550.0,105540.0,0.38256]
[1749314575942,0.69498928,105550.0,105540.0,0.38256]
[1749314576104,0.70163405,105550.0,105540.0,0.38256]
[1749314576311,0.68391464,105550.0,105540.0,0.38256]
[1749314576516,0.70163405,105550.0,105540.0,0.38256]
[1749314576918,0.70163401,105550.0,105540.0,0.38256]
[1749314577502,0.70163399,105550.0,105540.0,0.38256]
[1749314577732,0.67726987,105550.0,105540.0,0.38256]
[1749314578179,0.70163393,105550.0,105540.0,0.38256]
[1749314579025,0.68391461,105550.0,105540.0,0.38256]
[1749314579226,0.67726987,105550.0,105540.0,0.38256]
[1749314579445,0.70163372,105550.0,105540.0,0.38256]
[1749314579670,0.68391455,105550.0,105540.0,0.38256]
[1749314580047,0.67726987,105550.0,105540.0,0.002]
[1749314580246,0.69498904,105550.0,105540.0,0.38252]
[1749314580466,0.68391449,105550.0,105540.0,0.38252]
[1749314580651,0.70163345,105550.0,105540.0,0.38252]
[1749314581062,0.69498885,105550.0,105540.0,0.38252]
[1749314581243,0.70163346,105550.0,105540.0,0.38252]
[1749314582755,0.68391448,105550.0,105540.0,0.38252]
[1749314582980,0.70163346,105550.0,105540.0,0.38252]
[1749314583602,0.7016335,105550.0,105540.0,0.38252]
[1749314583813,0.70163331,105550.0,105540.0,0.38252]
[1749314584019,0.69498874,105550.0,105540.0,0.38252]
[1749314584444,0.67726987,105550.0,105540.0,0.38252]
[1749314584707,0.70163331,105550.0,105540.0,0.38252]
[1749314584903,0.68391444,105550.0,105540.0,0.38252]
[1749314585110,0.70163331,105550.0,105540.0,0.38252]
[1749314585440,0.70163348,105550.0,105540.0,0.38252]
[1749314585563,0.68391451,105550.0,105540.0,0.38252]
[1749314585759,0.70163356,105550.0,105540.0,0.38252]
[1749314587500,0.67726987,105550.0,105540.0,0.38252]
[1749314587709,0.70163201,105550.0,105540.0,0.38252]
[1749314587918,0.69498874,105550.0,105540.0,0.38252]
[1749314588131,0.70163376,105550.0,105540.0,0.38252]
[1749314588695,0.69499015,105550.0,105540.0,0.38252]
[1749314588917,0.70163525,105550.0,105540.0,0.38252]
[1749314589116,0.69499015,105550.0,105540.0,0.38252]
[1749314589320,0.70163526,105550.0,105540.0,0.38252]
[1749314589528,0.70163528,105550.0,105540.0,0.38252]
[1749314589752,0.69499017,105550.0,105540.0,0.38252]
[1749314589891,0.70163528,105550.0,105540.0,0.38252]
[1749314590296,0.70163554,105550.0,105540.0,0.38252]